[Event "Titled Tuesday Blitz May 30 Early 2023"]
[White "Ioannidis, Evgenios"]
[Black "Lazavik, Denis"]
[WhiteFideId "4229274"]
[BlackFideId "13515110"]
[WhiteElo "2386"]
[BlackElo "2560"]
[Result "0-1"]
[Round "05"]
[TimeControl "180+2"]
[Date "2023.05.30"]
[WhiteClock "0:00:03"]
[BlackClock "0:00:05"]

1. d4 {[%clk 0:02:56]}  Nf6 {[%clk 0:02:59]} 2. c4 {[%clk 0:02:56]}  e6 {[%clk 0:02:59]} 3. Nc3 {[%clk 0:02:56]}  Bb4 {[%clk 0:02:59]} 4. Qc2 {[%clk 0:02:57]}  O-O {[%clk 0:02:58]} 5. e4 {[%clk 0:02:57]}  d5 {[%clk 0:02:56]} 6. e5 {[%clk 0:02:57]}  Ne4 {[%clk 0:02:56]} 7. Bd3 {[%clk 0:02:58]}  c5 {[%clk 0:02:56]} 8. Nf3 {[%clk 0:02:58]}  cxd4 {[%clk 0:02:56]} 9. Nxd4 {[%clk 0:02:59]}  Nd7 {[%clk 0:02:57]} 10. Bf4 {[%clk 0:02:59]}  Qh4 {[%clk 0:02:56]} 11. g3 {[%clk 0:03:00]}  Qh5 {[%clk 0:02:56]} 12. h4 {[%clk 0:03:01]}  Nxe5 {[%clk 0:02:53]} 13. Be2 {[%clk 0:03:01]}  Ng4 {[%clk 0:02:53]} 14. Bxg4 {[%clk 0:03:02]}  Qxg4 {[%clk 0:02:54]} 15. f3 {[%clk 0:03:02]}  Qh5 {[%clk 0:02:51]} 16. g4 {[%clk 0:03:01]}  Qg6 {[%clk 0:02:50]} 17. fxe4 {[%clk 0:03:01]}  e5 {[%clk 0:02:46]} 18. O-O-O {[%clk 0:02:56]}  Bxc3 {[%clk 0:02:44]} 19. Nf5 {[%clk 0:02:55]}  Bxf5 {[%clk 0:02:09]} 20. gxf5 {[%clk 0:02:55]}  Qg4 {[%clk 0:01:57]} 21. Be3 {[%clk 0:02:45]}  Bd4 {[%clk 0:01:48]} 22. Bxd4 {[%clk 0:02:35]}  exd4 {[%clk 0:01:49]} 23. exd5 {[%clk 0:02:32]}  Rfe8 {[%clk 0:01:43]} 24. Qd3 {[%clk 0:02:04]}  Re4 {[%clk 0:01:16]} 25. f6 {[%clk 0:01:45]}  g6 {[%clk 0:01:12]} 26. Kb1 {[%clk 0:01:40]}  Rae8 {[%clk 0:01:11]} 27. h5 {[%clk 0:01:37]}  Qf5 {[%clk 0:00:35]} 28. hxg6 {[%clk 0:01:25]}  hxg6 {[%clk 0:00:35]} 29. Rhf1 {[%clk 0:01:17]}  Qg5 {[%clk 0:00:30]} 30. d6 {[%clk 0:01:07]}  Rh4 {[%clk 0:00:28]} 31. Qf3 {[%clk 0:00:43]}  Rh2 {[%clk 0:00:07]} 32. d7 {[%clk 0:00:36]}  Rd8 {[%clk 0:00:06]} 33. Rxd4 {[%clk 0:00:27]}  Qe5 {[%clk 0:00:07]} 34. Qc3 {[%clk 0:00:18]}  Qe6 {[%clk 0:00:05]} 35. Rfd1 {[%clk 0:00:16]}  Rh3 {[%clk 0:00:05]} 36. Qa5 {[%clk 0:00:13]}  b6 {[%clk 0:00:05]} 37. Qd5 {[%clk 0:00:11]}  Qxf6 {[%clk 0:00:06]} 38. Qe4 {[%clk 0:00:11]}  Kg7 {[%clk 0:00:05]} 39. Rd6 {[%clk 0:00:10]}  Qf3 {[%clk 0:00:05]} 40. Qxf3 {[%clk 0:00:10]}  Rxf3 {[%clk 0:00:05]} 41. Rc6 {[%clk 0:00:10]}  Kf8 {[%clk 0:00:05]} 42. Rc7 {[%clk 0:00:09]}  a5 {[%clk 0:00:04]} 43. b4 {[%clk 0:00:06]}  axb4 {[%clk 0:00:04]} 44. Rc6 {[%clk 0:00:05]}  Ke7 {[%clk 0:00:04]} 45. Rc7 {[%clk 0:00:06]}  Rf6 {[%clk 0:00:04]} 46. Kc2 {[%clk 0:00:05]}  Rd6 {[%clk 0:00:04]} 47. Re1+ {[%clk 0:00:05]}  Kf6 {[%clk 0:00:04]} 48. Kb3 {[%clk 0:00:05]}  R8xd7 {[%clk 0:00:04]} 49. Rxd7 {[%clk 0:00:06]}  Rxd7 {[%clk 0:00:05]} 50. Kxb4 {[%clk 0:00:07]}  g5 {[%clk 0:00:05]} 51. Kb5 {[%clk 0:00:07]}  Rd6 {[%clk 0:00:04]} 52. a4 {[%clk 0:00:08]}  g4 {[%clk 0:00:03]} 53. Re8 {[%clk 0:00:07]}  Kg5 {[%clk 0:00:03]} 54. Rg8+ {[%clk 0:00:06]}  Rg6 {[%clk 0:00:03]} 55. Rxg6+ {[%clk 0:00:06]}  Kxg6 {[%clk 0:00:03]} 56. a5 {[%clk 0:00:06]}  bxa5 {[%clk 0:00:03]} 57. c5 {[%clk 0:00:06]}  g3 {[%clk 0:00:04]} 58. c6 {[%clk 0:00:07]}  g2 {[%clk 0:00:04]} 59. c7 {[%clk 0:00:08]}  g1=Q {[%clk 0:00:05]} 60. c8=Q {[%clk 0:00:09]}  Qg5+ {[%clk 0:00:06]} 61. Ka4 {[%clk 0:00:08]}  Qf4+ {[%clk 0:00:05]} 62. Ka3 {[%clk 0:00:07]}  Qb4+ {[%clk 0:00:05]} 63. Ka2 {[%clk 0:00:07]}  Kf6 {[%clk 0:00:04]} 64. Qd8+ {[%clk 0:00:06]}  Ke6 {[%clk 0:00:05]} 65. Qe8+ {[%clk 0:00:06]}  Qe7 {[%clk 0:00:05]} 66. Qc6+ {[%clk 0:00:02]}  Kf5 {[%clk 0:00:05]} 67. Qc8+ {[%clk 0:00:03]}  Qe6+ {[%clk 0:00:05]} 68. Qxe6+ {[%clk 0:00:03]}  Kxe6 {[%clk 0:00:05]} 0-1


[Site "https://www.chess.com"]

[Event "Titled Tuesday Blitz May 30 Early 2023"]
[White "Matinian, Nikita"]
[Black "Hakobyan, Aram"]
[WhiteFideId "24129100"]
[BlackFideId "13306677"]
[WhiteElo "2422"]
[BlackElo "2584"]
[Result "1-0"]
[Round "05"]
[TimeControl "180+2"]
[Date "2023.05.30"]
[WhiteClock "0:00:05"]
[BlackClock "0:00:03"]

1. e4 {[%clk 0:03:00]}  c5 {[%clk 0:02:56]} 2. Nf3 {[%clk 0:03:00]}  Nc6 {[%clk 0:02:55]} 3. Bb5 {[%clk 0:03:00]}  g6 {[%clk 0:02:54]} 4. O-O {[%clk 0:02:59]}  Bg7 {[%clk 0:02:53]} 5. d3 {[%clk 0:02:59]}  d6 {[%clk 0:02:50]} 6. Re1 {[%clk 0:02:52]}  e5 {[%clk 0:02:45]} 7. a3 {[%clk 0:02:51]}  Ne7 {[%clk 0:02:44]} 8. b4 {[%clk 0:02:51]}  O-O {[%clk 0:02:43]} 9. bxc5 {[%clk 0:02:49]}  dxc5 {[%clk 0:02:43]} 10. Bg5 {[%clk 0:02:48]}  h6 {[%clk 0:02:38]} 11. Bxe7 {[%clk 0:02:39]}  Nxe7 {[%clk 0:02:38]} 12. a4 {[%clk 0:02:36]}  Be6 {[%clk 0:02:28]} 13. Nc3 {[%clk 0:02:34]}  Nc8 {[%clk 0:02:09]} 14. Bc4 {[%clk 0:01:51]}  Bd7 {[%clk 0:02:09]} 15. Qb1 {[%clk 0:01:46]}  Nd6 {[%clk 0:02:09]} 16. Bd5 {[%clk 0:01:32]}  Kh7 {[%clk 0:02:02]} 17. Nb5 {[%clk 0:01:26]}  Bxb5 {[%clk 0:01:29]} 18. axb5 {[%clk 0:01:27]}  Qe7 {[%clk 0:01:29]} 19. Qb3 {[%clk 0:01:21]}  f5 {[%clk 0:01:25]} 20. exf5 {[%clk 0:01:21]}  gxf5 {[%clk 0:01:25]} 21. Re2 {[%clk 0:01:08]}  e4 {[%clk 0:00:19]} 22. Rae1 {[%clk 0:01:07]}  c4 {[%clk 0:00:20]} 23. Bxc4 {[%clk 0:00:39]}  Qc7 {[%clk 0:00:20]} 24. Nd2 {[%clk 0:00:35]}  a5 {[%clk 0:00:20]} 25. bxa6 {[%clk 0:00:27]}  bxa6 {[%clk 0:00:20]} 26. dxe4 {[%clk 0:00:26]}  Rab8 {[%clk 0:00:20]} 27. Qa2 {[%clk 0:00:26]}  fxe4 {[%clk 0:00:19]} 28. Bd5 {[%clk 0:00:24]}  Rb2 {[%clk 0:00:16]} 29. Qxa6 {[%clk 0:00:20]}  Bc3 {[%clk 0:00:10]} 30. Rd1 {[%clk 0:00:09]}  Rxc2 {[%clk 0:00:07]} 31. Nxe4 {[%clk 0:00:09]}  Bd4 {[%clk 0:00:02]} 32. Nxd6 {[%clk 0:00:07]}  Bxf2+ {[%clk 0:00:03]} 33. Kh1 {[%clk 0:00:07]}  Rxe2 {[%clk 0:00:03]} 34. Qxe2 {[%clk 0:00:06]}  Bh4 {[%clk 0:00:01]} 35. Be4+ {[%clk 0:00:06]}  Kh8 {[%clk 0:00:02]} 36. Nf5 {[%clk 0:00:06]}  Bf6 {[%clk 0:00:03]} 37. Qh5 {[%clk 0:00:05]}  Bg7 {[%clk 0:00:03]} 38. Nxh6 {[%clk 0:00:05]}  Qf4 {[%clk 0:00:02]} 39. Nf7+ {[%clk 0:00:05]}  Kg8 {[%clk 0:00:03]} 40. Bh7# {[%clk 0:00:05]} 1-0


[Site "https://www.chess.com"]

[Event "Titled Tuesday Blitz May 30 Early 2023"]
[White "Svane, Rasmus"]
[Black "Prohaszka, Peter"]
[WhiteFideId "4657101"]
[BlackFideId "726265"]
[WhiteElo "2601"]
[BlackElo "2626"]
[Result "1-0"]
[Round "05"]
[TimeControl "180+2"]
[Date "2023.05.30"]
[WhiteClock "0:00:49"]
[BlackClock "0:00:01"]

1. Nf3 {[%clk 0:03:00]}  d5 {[%clk 0:02:47]} 2. g3 {[%clk 0:03:01]}  g6 {[%clk 0:02:43]} 3. Bg2 {[%clk 0:03:00]}  Bg7 {[%clk 0:02:44]} 4. d4 {[%clk 0:03:01]}  Nf6 {[%clk 0:02:43]} 5. O-O {[%clk 0:03:01]}  O-O {[%clk 0:02:44]} 6. c4 {[%clk 0:03:02]}  c6 {[%clk 0:02:45]} 7. Qb3 {[%clk 0:03:02]}  a5 {[%clk 0:02:44]} 8. Rd1 {[%clk 0:03:00]}  a4 {[%clk 0:02:42]} 9. Qb4 {[%clk 0:03:00]}  Re8 {[%clk 0:02:41]} 10. Bf4 {[%clk 0:02:53]}  Bf5 {[%clk 0:01:57]} 11. Qxb7 {[%clk 0:02:34]}  Na6 {[%clk 0:01:51]} 12. c5 {[%clk 0:02:12]}  Nd7 {[%clk 0:01:36]} 13. Nc3 {[%clk 0:01:48]}  a3 {[%clk 0:01:27]} 14. bxa3 {[%clk 0:01:46]}  Naxc5 {[%clk 0:01:23]} 15. dxc5 {[%clk 0:01:38]}  Bxc3 {[%clk 0:01:22]} 16. Rac1 {[%clk 0:01:39]}  Bg7 {[%clk 0:00:48]} 17. Qxc6 {[%clk 0:01:37]}  Bb2 {[%clk 0:00:43]} 18. Qxd5 {[%clk 0:01:27]}  Bxc1 {[%clk 0:00:36]} 19. Rxc1 {[%clk 0:01:28]}  Nf6 {[%clk 0:00:29]} 20. Qe5 {[%clk 0:01:29]}  Be4 {[%clk 0:00:26]} 21. c6 {[%clk 0:01:27]}  Qd5 {[%clk 0:00:26]} 22. Qc3 {[%clk 0:01:18]}  Rec8 {[%clk 0:00:19]} 23. c7 {[%clk 0:01:16]}  Ra6 {[%clk 0:00:16]} 24. Bh3 {[%clk 0:01:07]}  Bf5 {[%clk 0:00:08]} 25. Bxf5 {[%clk 0:01:07]}  gxf5 {[%clk 0:00:08]} 26. Rb1 {[%clk 0:00:57]}  Rc6 {[%clk 0:00:06]} 27. Qd4 {[%clk 0:00:57]}  Rc4 {[%clk 0:00:03]} 28. Qxd5 {[%clk 0:00:51]}  Nxd5 {[%clk 0:00:04]} 29. Rb8 {[%clk 0:00:52]}  Nb6 {[%clk 0:00:02]} 30. Rxb6 {[%clk 0:00:52]}  R8xc7 {[%clk 0:00:01]} 31. Bxc7 {[%clk 0:00:52]}  Rxc7 {[%clk 0:00:02]} 32. a4 {[%clk 0:00:50]}  Rc2 {[%clk 0:00:02]} 33. Nd4 {[%clk 0:00:49]}  Rxa2 {[%clk 0:00:01]} 34. Nxf5 {[%clk 0:00:50]}  h6 {[%clk 0:00:01]} 35. Nxe7+ {[%clk 0:00:49]} 1-0


[Site "https://www.chess.com"]

[Event "Titled Tuesday Blitz May 30 Early 2023"]
[White "Domingo Nunez, Ruben"]
[Black "Kuzubov, Yuriy"]
[WhiteFideId "22245570"]
[BlackFideId "14112906"]
[WhiteElo "2404"]
[BlackElo "2496"]
[Result "0-1"]
[Round "05"]
[TimeControl "180+2"]
[Date "2023.05.30"]
[WhiteClock "0:00:24"]
[BlackClock "0:00:17"]

1. c4 {[%clk 0:02:56]}  e5 {[%clk 0:02:59]} 2. Nc3 {[%clk 0:02:55]}  Nf6 {[%clk 0:02:59]} 3. Nf3 {[%clk 0:02:56]}  Nc6 {[%clk 0:02:58]} 4. e4 {[%clk 0:02:56]}  h6 {[%clk 0:02:55]} 5. a3 {[%clk 0:02:51]}  a5 {[%clk 0:02:50]} 6. d4 {[%clk 0:02:51]}  exd4 {[%clk 0:02:50]} 7. Nxd4 {[%clk 0:02:52]}  Bc5 {[%clk 0:02:50]} 8. Nb3 {[%clk 0:02:34]}  Ba7 {[%clk 0:02:40]} 9. c5 {[%clk 0:02:12]}  O-O {[%clk 0:02:30]} 10. Bd3 {[%clk 0:02:01]}  d6 {[%clk 0:02:26]} 11. cxd6 {[%clk 0:01:51]}  a4 {[%clk 0:02:05]} 12. dxc7 {[%clk 0:01:35]}  Qxc7 {[%clk 0:01:53]} 13. Nb5 {[%clk 0:01:29]}  Bxf2+ {[%clk 0:01:06]} 14. Kxf2 {[%clk 0:01:27]}  Qe5 {[%clk 0:01:07]} 15. Nd2 {[%clk 0:01:16]}  Rd8 {[%clk 0:00:52]} 16. Nf3 {[%clk 0:01:14]}  Qc5+ {[%clk 0:00:47]} 17. Ke2 {[%clk 0:01:05]}  Ng4 {[%clk 0:00:29]} 18. Qc2 {[%clk 0:00:30]}  Qf2+ {[%clk 0:00:22]} 19. Kd1 {[%clk 0:00:30]}  Rxd3+ {[%clk 0:00:17]} 20. Qxd3 {[%clk 0:00:29]}  Be6 {[%clk 0:00:18]} 21. Bd2 {[%clk 0:00:26]}  Rd8 {[%clk 0:00:17]} 22. Qe2 {[%clk 0:00:26]}  Bb3+ {[%clk 0:00:17]} 23. Kc1 {[%clk 0:00:24]}  Qxe2 {[%clk 0:00:17]} 0-1


[Site "https://www.chess.com"]

[Event "Titled Tuesday Blitz May 30 Early 2023"]
[White "Hayrapetyan, Hovik"]
[Black "Korchmar, Vasiliy"]
[WhiteFideId "13302639"]
[BlackFideId "24131750"]
[WhiteElo "2348"]
[BlackElo "2370"]
[Result "0-1"]
[Round "05"]
[TimeControl "180+2"]
[Date "2023.05.30"]
[WhiteClock "0:00:10"]
[BlackClock "0:00:11"]

1. d4 {[%clk 0:03:00]}  d5 {[%clk 0:02:59]} 2. c4 {[%clk 0:03:01]}  c6 {[%clk 0:02:59]} 3. Nf3 {[%clk 0:03:01]}  Nf6 {[%clk 0:02:59]} 4. Nc3 {[%clk 0:03:00]}  e6 {[%clk 0:02:59]} 5. e3 {[%clk 0:03:01]}  Nbd7 {[%clk 0:02:59]} 6. Bd3 {[%clk 0:03:01]}  dxc4 {[%clk 0:02:59]} 7. Bxc4 {[%clk 0:03:02]}  b5 {[%clk 0:03:00]} 8. Bd3 {[%clk 0:03:02]}  b4 {[%clk 0:03:01]} 9. Ne4 {[%clk 0:02:57]}  Nxe4 {[%clk 0:03:01]} 10. Bxe4 {[%clk 0:02:58]}  Bb7 {[%clk 0:03:02]} 11. Nd2 {[%clk 0:02:57]}  Be7 {[%clk 0:03:01]} 12. O-O {[%clk 0:02:54]}  O-O {[%clk 0:03:01]} 13. b3 {[%clk 0:02:50]}  Nf6 {[%clk 0:02:54]} 14. Bf3 {[%clk 0:02:50]}  Nd5 {[%clk 0:02:54]} 15. Bb2 {[%clk 0:02:48]}  c5 {[%clk 0:02:52]} 16. Qe2 {[%clk 0:02:39]}  cxd4 {[%clk 0:02:42]} 17. Bxd4 {[%clk 0:02:40]}  a5 {[%clk 0:02:42]} 18. Nc4 {[%clk 0:02:38]}  Bf6 {[%clk 0:02:36]} 19. Qb2 {[%clk 0:02:25]}  Bxd4 {[%clk 0:01:53]} 20. Qxd4 {[%clk 0:02:26]}  Qe7 {[%clk 0:01:51]} 21. a4 {[%clk 0:01:22]}  Rfd8 {[%clk 0:01:36]} 22. Qb2 {[%clk 0:01:16]}  Nc3 {[%clk 0:01:34]} 23. Bxb7 {[%clk 0:01:15]}  Qxb7 {[%clk 0:01:35]} 24. Rac1 {[%clk 0:01:10]}  Rd5 {[%clk 0:01:34]} 25. Na3 {[%clk 0:00:46]}  Rad8 {[%clk 0:01:27]} 26. Nb1 {[%clk 0:00:46]}  Ne4 {[%clk 0:01:08]} 27. Rc4 {[%clk 0:00:42]}  Rg5 {[%clk 0:00:48]} 28. f3 {[%clk 0:00:36]}  Nc5 {[%clk 0:00:47]} 29. Qc2 {[%clk 0:00:32]}  Qb6 {[%clk 0:00:25]} 30. Rd1 {[%clk 0:00:24]}  Rgd5 {[%clk 0:00:21]} 31. Rcd4 {[%clk 0:00:19]}  Nb7 {[%clk 0:00:07]} 32. Rxd5 {[%clk 0:00:17]}  Qxe3+ {[%clk 0:00:06]} 33. Kf1 {[%clk 0:00:14]}  exd5 {[%clk 0:00:06]} 34. Re1 {[%clk 0:00:10]}  Qb6 {[%clk 0:00:04]} 35. Qf5 {[%clk 0:00:05]}  g6 {[%clk 0:00:04]} 36. Qe5 {[%clk 0:00:04]}  Nc5 {[%clk 0:00:04]} 37. Qe7 {[%clk 0:00:03]}  Nxb3 {[%clk 0:00:03]} 38. h4 {[%clk 0:00:01]}  h5 {[%clk 0:00:03]} 39. g4 {[%clk 0:00:01]}  hxg4 {[%clk 0:00:03]} 40. h5 {[%clk 0:00:01]}  gxh5 {[%clk 0:00:03]} 41. Qg5+ {[%clk 0:00:01]}  Kf8 {[%clk 0:00:03]} 42. Qxh5 {[%clk 0:00:01]}  Qg6 {[%clk 0:00:03]} 43. Qh8+ {[%clk 0:00:02]}  Qg8 {[%clk 0:00:03]} 44. Qh6+ {[%clk 0:00:02]}  Qg7 {[%clk 0:00:03]} 45. Qh4 {[%clk 0:00:01]}  Re8 {[%clk 0:00:03]} 46. Rxe8+ {[%clk 0:00:01]}  Kxe8 {[%clk 0:00:04]} 47. Qe1+ {[%clk 0:00:01]}  Kf8 {[%clk 0:00:04]} 48. Qd1 {[%clk 0:00:02]}  Nd4 {[%clk 0:00:03]} 49. Qd3 {[%clk 0:00:02]}  Qf6 {[%clk 0:00:03]} 50. Kg2 {[%clk 0:00:01]}  gxf3+ {[%clk 0:00:04]} 51. Qxf3 {[%clk 0:00:02]}  Qxf3+ {[%clk 0:00:04]} 52. Kh2 {[%clk 0:00:02]}  Qd1 {[%clk 0:00:04]} 53. Nd2 {[%clk 0:00:03]}  Qxd2+ {[%clk 0:00:05]} 54. Kh3 {[%clk 0:00:04]}  b3 {[%clk 0:00:04]} 55. Kg3 {[%clk 0:00:05]}  Nc2 {[%clk 0:00:05]} 56. Kg4 {[%clk 0:00:05]}  Qb4+ {[%clk 0:00:05]} 57. Kf5 {[%clk 0:00:06]}  b2 {[%clk 0:00:06]} 58. Kf6 {[%clk 0:00:06]}  Qxa4 {[%clk 0:00:06]} 59. Ke5 {[%clk 0:00:06]}  Qb4 {[%clk 0:00:07]} 60. Kf6 {[%clk 0:00:06]}  d4 {[%clk 0:00:07]} 61. Ke5 {[%clk 0:00:07]}  d3 {[%clk 0:00:08]} 62. Kd5 {[%clk 0:00:08]}  d2 {[%clk 0:00:09]} 63. Ke5 {[%clk 0:00:08]}  d1=Q {[%clk 0:00:09]} 64. Kf6 {[%clk 0:00:09]}  Qf3+ {[%clk 0:00:09]} 65. Kg5 {[%clk 0:00:09]}  Qbg4+ {[%clk 0:00:10]} 66. Kh6 {[%clk 0:00:10]}  Qfh3# {[%clk 0:00:11]} 0-1


[Site "https://www.chess.com"]

[Event "Titled Tuesday Blitz May 30 Early 2023"]
[White "Mendonca, Leon Luke"]
[Black "Arabidze, Meri"]
[WhiteFideId "35028561"]
[BlackFideId "13604040"]
[WhiteElo "2464"]
[BlackElo "2405"]
[Result "1-0"]
[Round "05"]
[TimeControl "180+2"]
[Date "2023.05.30"]
[WhiteClock "0:00:05"]
[BlackClock "0:00:00"]

1. e4 {[%clk 0:03:00]}  c5 {[%clk 0:02:59]} 2. Nf3 {[%clk 0:03:01]}  e6 {[%clk 0:03:00]} 3. g3 {[%clk 0:02:59]}  Nc6 {[%clk 0:02:58]} 4. Bg2 {[%clk 0:02:54]}  Nf6 {[%clk 0:02:58]} 5. Qe2 {[%clk 0:02:52]}  d6 {[%clk 0:02:57]} 6. O-O {[%clk 0:02:51]}  Be7 {[%clk 0:02:58]} 7. c3 {[%clk 0:02:40]}  O-O {[%clk 0:02:58]} 8. d4 {[%clk 0:02:40]}  cxd4 {[%clk 0:02:59]} 9. cxd4 {[%clk 0:02:41]}  d5 {[%clk 0:03:00]} 10. e5 {[%clk 0:02:41]}  Ne4 {[%clk 0:03:01]} 11. Nbd2 {[%clk 0:02:39]}  Nxd2 {[%clk 0:02:57]} 12. Bxd2 {[%clk 0:02:40]}  Bd7 {[%clk 0:02:58]} 13. h4 {[%clk 0:02:37]}  Qb6 {[%clk 0:02:53]} 14. Bc3 {[%clk 0:02:37]}  Bb4 {[%clk 0:02:47]} 15. Rfc1 {[%clk 0:02:10]}  Rfc8 {[%clk 0:02:43]} 16. Bf1 {[%clk 0:02:09]}  Bxc3 {[%clk 0:02:34]} 17. bxc3 {[%clk 0:02:10]}  Na5 {[%clk 0:02:34]} 18. Nh2 {[%clk 0:02:06]}  a6 {[%clk 0:02:31]} 19. Ng4 {[%clk 0:02:03]}  Bb5 {[%clk 0:02:27]} 20. Qe3 {[%clk 0:02:04]}  Bxf1 {[%clk 0:02:25]} 21. Kxf1 {[%clk 0:02:05]}  Qd8 {[%clk 0:02:22]} 22. Kg2 {[%clk 0:02:00]}  Rc7 {[%clk 0:02:09]} 23. h5 {[%clk 0:01:57]}  h6 {[%clk 0:02:08]} 24. Rc2 {[%clk 0:01:49]}  Rac8 {[%clk 0:02:07]} 25. f4 {[%clk 0:01:48]}  b5 {[%clk 0:02:04]} 26. a3 {[%clk 0:01:35]}  Nc4 {[%clk 0:02:00]} 27. Qd3 {[%clk 0:01:34]}  Nb6 {[%clk 0:01:53]} 28. Ne3 {[%clk 0:01:23]}  Na4 {[%clk 0:01:51]} 29. Rac1 {[%clk 0:01:17]}  Rc6 {[%clk 0:01:33]} 30. Nd1 {[%clk 0:00:44]}  Qe7 {[%clk 0:01:29]} 31. Ra1 {[%clk 0:00:41]}  Rc4 {[%clk 0:01:14]} 32. Kh3 {[%clk 0:00:33]}  R4c6 {[%clk 0:01:13]} 33. Raa2 {[%clk 0:00:28]}  Rc4 {[%clk 0:01:12]} 34. Kh2 {[%clk 0:00:26]}  f5 {[%clk 0:01:04]} 35. exf6 {[%clk 0:00:24]}  Qxf6 {[%clk 0:01:04]} 36. Kg2 {[%clk 0:00:13]}  Qf7 {[%clk 0:01:03]} 37. Qf3 {[%clk 0:00:13]}  R4c7 {[%clk 0:00:44]} 38. Rc1 {[%clk 0:00:08]}  Rc4 {[%clk 0:00:43]} 39. Re2 {[%clk 0:00:08]}  Rxd4 {[%clk 0:00:41]} 40. cxd4 {[%clk 0:00:06]}  Rxc1 {[%clk 0:00:40]} 41. Nf2 {[%clk 0:00:07]}  Rc3 {[%clk 0:00:36]} 42. Qg4 {[%clk 0:00:07]}  Qf5 {[%clk 0:00:31]} 43. Qg6 {[%clk 0:00:04]}  Qxg6 {[%clk 0:00:20]} 44. hxg6 {[%clk 0:00:05]}  Rc6 {[%clk 0:00:20]} 45. Nd3 {[%clk 0:00:06]}  Kf8 {[%clk 0:00:20]} 46. Nb4 {[%clk 0:00:06]}  Rd6 {[%clk 0:00:16]} 47. Rc2 {[%clk 0:00:05]}  Ke7 {[%clk 0:00:16]} 48. Nd3 {[%clk 0:00:05]}  Kf6 {[%clk 0:00:13]} 49. Ne5 {[%clk 0:00:06]}  h5 {[%clk 0:00:05]} 50. Rc7 {[%clk 0:00:04]}  Kf5 {[%clk 0:00:00]} 51. Kf3 {[%clk 0:00:05]} 1-0


[Site "https://www.chess.com"]

[Event "Titled Tuesday Blitz May 30 Early 2023"]
[White "Al-Tarboush, Ward"]
[Black "Karthik Rajaa"]
[WhiteFideId "7601450"]
[BlackFideId "25035215"]
[WhiteElo "2265"]
[BlackElo "2215"]
[Result "1-0"]
[Round "05"]
[TimeControl "180+2"]
[Date "2023.05.30"]
[WhiteClock "0:01:06"]
[BlackClock "0:00:15"]

1. d4 {[%clk 0:03:00]}  Nf6 {[%clk 0:02:59]} 2. Nc3 {[%clk 0:03:01]}  d5 {[%clk 0:02:57]} 3. Bg5 {[%clk 0:03:00]}  c6 {[%clk 0:02:53]} 4. Nf3 {[%clk 0:03:01]}  h6 {[%clk 0:02:52]} 5. Bxf6 {[%clk 0:03:01]}  exf6 {[%clk 0:02:53]} 6. e4 {[%clk 0:03:00]}  dxe4 {[%clk 0:02:53]} 7. Nxe4 {[%clk 0:03:01]}  f5 {[%clk 0:02:42]} 8. Nc3 {[%clk 0:02:59]}  Bd6 {[%clk 0:02:42]} 9. Bc4 {[%clk 0:02:56]}  O-O {[%clk 0:02:37]} 10. O-O {[%clk 0:02:56]}  Nd7 {[%clk 0:02:38]} 11. Re1 {[%clk 0:02:56]}  Nb6 {[%clk 0:02:37]} 12. Bb3 {[%clk 0:02:56]}  Qf6 {[%clk 0:02:05]} 13. Qd3 {[%clk 0:02:56]}  Rd8 {[%clk 0:01:59]} 14. Rad1 {[%clk 0:02:43]}  Bc7 {[%clk 0:01:47]} 15. Qe2 {[%clk 0:02:38]}  Bd7 {[%clk 0:01:42]} 16. Qe7 {[%clk 0:02:37]}  Qxe7 {[%clk 0:00:58]} 17. Rxe7 {[%clk 0:02:38]}  Rf8 {[%clk 0:00:59]} 18. Ne5 {[%clk 0:02:38]}  Bxe5 {[%clk 0:00:56]} 19. dxe5 {[%clk 0:02:36]}  Rae8 {[%clk 0:00:56]} 20. Rdxd7 {[%clk 0:02:28]}  Nxd7 {[%clk 0:00:55]} 21. Bxf7+ {[%clk 0:02:16]}  Rxf7 {[%clk 0:00:56]} 22. Rxe8+ {[%clk 0:02:16]}  Rf8 {[%clk 0:00:54]} 23. Re7 {[%clk 0:02:10]}  Rf7 {[%clk 0:00:54]} 24. Re8+ {[%clk 0:02:08]}  Rf8 {[%clk 0:00:54]} 25. Rxf8+ {[%clk 0:02:08]}  Nxf8 {[%clk 0:00:55]} 26. f4 {[%clk 0:02:05]}  Ne6 {[%clk 0:00:55]} 27. g3 {[%clk 0:02:06]}  g5 {[%clk 0:00:56]} 28. Ne2 {[%clk 0:02:06]}  Kf7 {[%clk 0:00:55]} 29. Kf2 {[%clk 0:02:07]}  Kg6 {[%clk 0:00:46]} 30. Ke3 {[%clk 0:02:06]}  c5 {[%clk 0:00:46]} 31. a3 {[%clk 0:02:01]}  b5 {[%clk 0:00:45]} 32. c3 {[%clk 0:01:59]}  Kh5 {[%clk 0:00:43]} 33. b4 {[%clk 0:01:56]}  cxb4 {[%clk 0:00:38]} 34. cxb4 {[%clk 0:01:57]}  Kg4 {[%clk 0:00:38]} 35. fxg5 {[%clk 0:01:50]}  hxg5 {[%clk 0:00:38]} 36. Nd4 {[%clk 0:01:43]}  f4+ {[%clk 0:00:36]} 37. Ke4 {[%clk 0:01:14]}  f3 {[%clk 0:00:20]} 38. Nxf3 {[%clk 0:01:10]}  Kh3 {[%clk 0:00:19]} 39. Nd4 {[%clk 0:01:09]}  Ng7 {[%clk 0:00:19]} 40. e6 {[%clk 0:01:05]}  Kxh2 {[%clk 0:00:19]} 41. e7 {[%clk 0:01:05]}  Kxg3 {[%clk 0:00:16]} 42. Nf5+ {[%clk 0:01:05]}  Nxf5 {[%clk 0:00:15]} 43. Kxf5 {[%clk 0:01:06]} 1-0


[Site "https://www.chess.com"]